Cogmind - Beta 14 @@@ ROGUE MODE // 2025.03.30 @ 06:12:39 Player: ochotona_princeps Result: Self-destructed Performance ------------- Evolutions (1) 500 Regions Visited (5) 1000 Robots Destroyed (47) 235 Value Destroyed (1013) 1013 Prototype IDs (4) 80 Alien Tech Used (0) 0 Bonus (214) 214 TOTAL SCORE: 3042 Bonus ------- High Alert Combat Kills 115 Follower Combat Kills 99 Cogmind --------- Core Integrity 11/400 Matter 235/300 Energy 100/100 System Corruption 0% Temperature Cool (1) Movement Flying (40) Location -9/Exiles Parts ------- > --- POWER (1) -------- (None) > --- PROPULSION (2) --- Flight Unit > --- UTILITY (4) ------ Improved Signal Interpreter Hacking Suite > --- WEAPON (2) ------- Mining Claw > --- INVENTORY (5) ---- Light Treads Experimental Sensor Array Heavy EM Pulse Gun Flail Peak State ------------ > --- POWER ------------ Light Deuterium Engine > --- PROPULSION ------- Flight Unit Improved Flight Unit > --- UTILITY ---------- Weight Redist. System Improved Signal Interpreter Light Armor Plating Hacking Suite > --- WEAPON ----------- Flail Mining Claw > --- INVENTORY -------- Light Ion Engine Flight Unit Experimental Sensor Array Rocket Launcher [Rating: 20] Favorites ----------- Power Light Ion Engine Engine Light Ion Engine Propulsion Flight Unit Wheel Compact Wheel Flight Unit Flight Unit Utility Hacking Suite Device Weight Redist. System Processor Improved Signal Interpreter Hackware Hacking Suite Protection Light Armor Plating Weapon Mining Claw Energy Gun EM Pulse Gun Ballistic Gun Assault Rifle Launcher Rocket Launcher Impact Weapon Flail Slashing Weapon Mining Claw Build | -11 -10 -10 -9 -9 -9 ------- Run | Yrd Mat Min Mat Min Exi Slots Evolved 2 | . . . 2 . . Power . | . . . . . . Propulsion . | . . . . . . Utility 2 | . . . 2 . . Weapon . | . . . . . . Parts Attached 36 | 5 6 7 16 1 1 Power 4 | 1 . 1 2 . . Engine 4 | 1 . 1 2 . . Core . | . . . . . . Reactor . | . . . . . . Propulsion 10 | 2 3 2 2 . 1 Treads . | . . . . . . Leg . | . . . . . . Wheel 4 | 2 2 . . . . Hover . | . . . . . . Flight 6 | . 1 2 2 . 1 Utility 7 | . 1 1 5 . . Device 1 | . . . 1 . . Storage . | . . . . . . Processor 1 | . . . 1 . . Hackware 1 | . 1 . . . . Protection 4 | . . 1 3 . . Artifact . | . . . . . . Weapon 15 | 2 2 3 7 1 . Energy Gun 1 | . 1 . . . . Energy Cannon . | . . . . . . Ballistic Gun 4 | 2 . 2 . . . Ballistic Cannon . | . . . . . . Launcher 4 | . . . 3 1 . Special Weapon . | . . . . . . Impact Weapon 3 | . . . 3 . . Slashing Weapon 3 | . 1 1 1 . . Piercing Weapon . | . . . . . . Special Melee Weapon . | . . . . . . Unidentified Prototypes 1 | . . . 1 . . Parts Lost 9 | . 2 . 4 . 3 Power 1 | . . . 1 . . Propulsion 5 | . 2 . 1 . 2 Utility 2 | . . . 2 . . Weapon 1 | . . . . . 1 Highest Loss Streak 3 | . 1 . 1 . 3 To Critical Strikes . | . . . . . . Average Slot Usage (%) 74 | . 60 80 83 77 62 Engine 10 | . 10 12 10 11 7 Wheel 4 | . 16 . . . . Flight 16 | . 1 26 22 22 16 Device 1 | . . . 4 . . Processor 5 | . . . 10 11 11 Hackware 9 | . 5 14 11 11 11 Protection 4 | . . 7 7 . . Energy Gun 2 | . 8 . . . . Ballistic Gun 4 | . 11 6 . . . Launcher 1 | . . . 1 11 5 Impact Weapon 3 | . . . 7 . . Slashing Weapon 8 | . 5 13 6 11 11 Peak Build Rating 20 | 5 7 9 20 15 15 Average Rating 10 | 3 4 8 15 15 12 On Entrance 8 | . 5 4 9 15 15 Naked Turns . | . . . . . . Heaviest Build 14 | 7 7 8 14 9 9 Greatest Support 26 | 26 26 8 15 9 9 Greatest Overweight (x) 2 | 2 2 1 1 . 1 Average Overweight (x) . | . . . . . . Largest Inventory Capacity 5 | 5 5 5 5 5 5 Average Capacity 5 | 5 5 5 5 5 5 Most Carried 5 | . 5 5 5 4 5 Average Carried 3 | . 3 4 3 4 4 Final Capacity 5 | 5 5 5 5 5 5 Final Carried 5 | . 5 5 4 4 4 Class Distribution -------------------- 60% | Mutant 39% | Scavenger-Mutant Dominant Class ---------------- Mutant | -10/Materials Scavenger-Mutant | -10/Mines Scavenger-Mutant | -9/Materials Mutant | -9/Mines Mutant | -9/Exiles Resources | -11 -10 -10 -9 -9 -9 ----------- Run | Yrd Mat Min Mat Min Exi Matter Collected 794 | 117 226 118 289 44 . Remotely . | . . . . . . Salvage Created 1065 | . 358 56 620 31 . Parts 74 | . 20 10 37 7 . Haulers Intercepted 3 | . . . 3 . . Recyclers Shooed . | . . . . . . Parts Field Recycled . | . . . . . . Retrieved Matter . | . . . . . . Parts Self-Destructed . | . . . . . . Prevented . | . . . . . . Kills | -11 -10 -10 -9 -9 -9 ------- Run | Yrd Mat Min Mat Min Exi Combat Hostiles Destroyed 36 | . 7 2 21 6 . Melee 5 | . 1 . 4 . . Guns 6 | . 4 2 . . . AOE 24 | . 2 . 16 6 . Classes Destroyed 10 | . 3 2 5 . . Worker 2 | . 1 . 1 . . Builder 1 | . . . 1 . . Tunneler 1 | . . 1 . . . Hauler 3 | . . . 3 . . Operator 3 | . 2 . 1 . . Watcher 1 | . . . 1 . . Swarmer 16 | . . 2 8 6 . Grunt 16 | . 7 . 9 . . Duelist 1 | . . . 1 . . Sentry 3 | . . . 3 . . Best Kill Streak 13 | . 3 2 13 6 . Combat Bots Only 11 | . 3 2 11 6 . Max Kills in Single Turn 3 | . 1 1 3 3 . Gunslinging . | . . . . . . Exploded 3 | . 1 . 3 3 . Melee 1 | . 1 . 1 . . Uniques/NPCs Destroyed . | . . . . . . Combat | -11 -10 -10 -9 -9 -9 -------- Run | Yrd Mat Min Mat Min Exi Hostile Shots Fired 127 | . 48 10 55 8 6 Missed 50 | . 21 4 21 4 . Damage Taken 1182 | . 352 48 423 26 333 Core 574 | . 143 42 120 6 263 Absorbed by Shields . | . . . . . . Regen/Repaired (Parts) 44 | . . . 44 . . Core Remaining (%) 63 | 100 . 26 . . . Volleys Fired 41 | . 10 7 20 4 . Largest 2 | . 2 2 1 1 . Hottest 60 | . 60 40 33 33 . Shots Fired 54 | . 20 10 20 4 . Gun 30 | . 20 10 . . . Cannon . | . . . . . . Launcher 24 | . . . 20 4 . Special . | . . . . . . Kinetic 22 | . 12 10 . . . Thermal . | . . . . . . Explosive 21 | . . . 17 4 . Electromagnetic 11 | . 8 . 3 . . Robot Hit Streak 8 | . 6 8 6 2 . Robot Miss Streak 3 | . 1 1 3 1 . Penetration Max . | . . . . . . Secondary Targets . | . . . . . . Shots Hit Robots 68 | . 28 8 28 3 1 Core Hits 55 | . 13 3 33 6 . Critical Kills . | . . . . . . Critical Parts Destroyed 2 | . . . 2 . . Critical Strikes 2 | . . . 2 . . Smash 2 | . . . 2 . . Melee Attacks 70 | . 26 . 43 . 1 Impact 17 | . . . 17 . . Slashing 53 | . 26 . 26 . 1 Piercing . | . . . . . . Sneak Attacks 11 | . 7 . 4 . . Combat Hostiles . | . . . . . . Follow-up Attacks 7 | . . . 7 . . Damage Inflicted 3274 | . 764 104 2024 382 . Guns 279 | . 175 104 . . . Cannons . | . . . . . . Explosions 1764 | . 109 . 1273 382 . Melee 1231 | . 480 . 751 . . Ramming . | . . . . . . Kinetic 185 | . 81 104 . . . Thermal 109 | . 109 . . . . Explosive 1534 | . . . 1152 382 . Electromagnetic 215 | . 94 . 121 . . Impact 356 | . . . 356 . . Slashing 875 | . 480 . 395 . . Piercing . | . . . . . . Highest Corruption 1 | . 1 1 . . . Average Corruption 1 | . 1 1 . . . Corruption Purged . | . . . . . . Corruption Blocked . | . . . . . . Effects 7 | . 5 2 . . . Message Errors 1 | . 1 . . . . Matter Fused 3 | . 2 1 . . . Heat Flow Errors 1 | . 1 . . . . Data Loss (minor) 1 | . . 1 . . . Alerts 1 | . 1 . . . . Overload Shots . | . . . . . . Overflow Damage 299 | . 91 . 195 13 . Projectiles . | . . . . . . Explosions 16 | . . . 3 13 . Melee 283 | . 91 . 192 . . Knockbacks . | . . . . . . Impact . | . . . . . . Kinetic . | . . . . . . Secondary . | . . . . . . Self-Inflicted Damage 98 | . 78 . 20 . . Shots 3 | . 2 . 1 . . Rammed . | . . . . . . Targets Rammed . | . . . . . . Kicked . | . . . . . . Crushed . | . . . . . . Highest Temperature 147 | . 147 . 17 . . Average Temperature 26 | . 33 . 9 . . Received Heat Transfer 285 | . 114 . 171 . . Siege Activations . | . . . . . . Robots Corrupted 3 | . . . 3 . . Combat Hostiles 1 | . . . 1 . . Parts Fried 5 | . . . 5 . . Impact Corruptions 8 | . . . 8 . . Robots Melted . | . . . . . . Combat Hostiles . | . . . . . . Parts Melted . | . . . . . . Heat Transferred 50 | . 50 . . . . Parts Sabotaged . | . . . . . . Parts Stolen . | . . . . . . Parts Stripped . | . . . . . . Power Chain Reactions 2 | . 2 . . . . Alert | -11 -10 -10 -9 -9 -9 ------- Run | Yrd Mat Min Mat Min Exi Peak Influence 894 | . 288 121 894 519 . Initial 348 | . . 51 46 348 . Average 246 | . 159 112 325 510 . Maximum Alert Level 3 | . 1 . 3 2 . Low Security (%) 57 | 100 54 100 50 . . Level 1 22 | . 45 . 23 1 . Level 2 12 | . . . 7 98 . Level 3 7 | . . . 18 . . Level 4 . | . . . . . . Level 5 . | . . . . . . High Security . | . . . . . . Max Security . | . . . . . . Squads Dispatched 6 | . 3 . 3 . . Investigation 4 | . 1 . 3 . . Extermination . | . . . . . . Reinforcement 2 | . 2 . . . . Assault . | . . . . . . Garrison . | . . . . . . Intercept . | . . . . . . Searches Triggered . | . . . . . . Construction Impeded . | . . . . . . Haulers Reinforced . | . . . . . . Active Scanning Responses . | . . . . . . Cargo Convoy Interrupts . | . . . . . . Stealth | -11 -10 -10 -9 -9 -9 --------- Run | Yrd Mat Min Mat Min Exi Distress Signals 6 | . 3 . 3 . . Communications Jammed . | . . . . . . Distress Signals . | . . . . . . Times Spotted 65 | . 24 4 29 7 1 Peak Tracking Total 11 | . 6 3 10 4 11 Tactical Retreats 10 | . 4 . 5 . 1 Traps | -11 -10 -10 -9 -9 -9 ------- Run | Yrd Mat Min Mat Min Exi Traps Triggered 1 | . 1 . . . . Indirectly . | . . . . . . Trap Hack Attempts . | . . . . . . Triggered . | . . . . . . Disarmed . | . . . . . . Reprogrammed . | . . . . . . Reused . | . . . . . . Traps Extracted . | . . . . . . Installed . | . . . . . . Triggered 2 | . . . 2 . . Machines | -11 -10 -10 -9 -9 -9 ---------- Run | Yrd Mat Min Mat Min Exi Machines Disabled 4 | . 2 . 2 . . Max in Single Turn 2 | . 2 . 1 . . Machines Repaired . | . . . . . . Machines Dismantled . | . . . . . . Machines Sabotaged . | . . . . . . Overloaded Fab Kills . | . . . . . . Hacking | -11 -10 -10 -9 -9 -9 --------- Run | Yrd Mat Min Mat Min Exi Machines Accessed 19 | . 5 1 13 . . Terminals 13 | . 4 . 9 . . Fabricators . | . . . . . . Repair Stations 2 | . 1 . 1 . . Recycling Units 2 | . . . 2 . . Scanalyzers 1 | . . . 1 . . Garrison Access . | . . . . . . Total Hacks 46 | . 9 1 36 . . Successful 25 | . 3 1 21 . . Failed 21 | . 6 . 15 . . Catastrophic 3 | . 2 . 1 . . Database Lockouts . | . . . . . . Manual 25 | . 8 . 17 . . Terminals 35 | . 8 . 27 . . Fabricators . | . . . . . . Repair Stations 3 | . 1 . 2 . . Recycling Units 3 | . . . 3 . . Scanalyzers 4 | . . . 4 . . Garrison Access . | . . . . . . Terminal Hacks 11 | . 1 1 9 . . Prototype ID Bank 1 | . . . 1 . . Open Door 1 | . . 1 . . . Level Access Points 1 | . . . 1 . . Branch Access Points 1 | . . . 1 . . Terminal Index 1 | . . . 1 . . Locate Traps 1 | . . . 1 . . Hauler Manifests 3 | . 1 . 2 . . Registered Components 1 | . . . 1 . . Zone Layout 1 | . . . 1 . . Fabricator Hacks . | . . . . . . Repair Station Hacks 2 | . . . 2 . . Scan Component 1 | . . . 1 . . Repair 1 | . . . 1 . . Recycling Unit Hacks 2 | . . . 2 . . Retrieve Components 2 | . . . 2 . . Scanalyzer 3 | . . . 3 . . Insert Component 1 | . . . 1 . . Analyze 2 | . . . 2 . . Garrison Access Hacks . | . . . . . . Unauthorized Hacks 7 | . 2 . 5 . . Terminals 7 | . 2 . 5 . . Assimilate 4 | . 1 . 3 . . Botnet 1 | . . . 1 . . Operators 2 | . 1 . 1 . . Fabricators . | . . . . . . Repair Stations . | . . . . . . Recycling Units . | . . . . . . Scanalyzers . | . . . . . . Garrison Access . | . . . . . . Data Cores Recovered . | . . . . . . Used . | . . . . . . Hacking Detections 15 | . 4 . 11 . . Full Trace Events 3 | . 1 . 2 . . Feedback Events . | . . . . . . Feedback Blocked . | . . . . . . Robot Schematics Acquired . | . . . . . . Robots Built . | . . . . . . Authchips . | . . . . . . Time . | . . . . . . Total Robot Build Rating . | . . . . . . Part Schematics Acquired 1 | . . . 1 . . Parts Built . | . . . . . . Authchips . | . . . . . . Time . | . . . . . . Total Part Build Rating . | . . . . . . Parts Repaired 1 | . . . 1 . . Time 13 | . . . 13 . . Parts Recycled . | . . . . . . Recycled Matter . | . . . . . . Retrieved Matter . | . . . . . . Retrieved Components 1 | . . . 1 . . Parts Scanalyzed 1 | . . . 1 . . Part Schematics Acquired 1 | . . . 1 . . Parts Damaged . | . . . . . . Bothacking | -11 -10 -10 -9 -9 -9 ------------ Run | Yrd Mat Min Mat Min Exi Used RIF Installer . | . . . . . . Robots Hacked . | . . . . . . Non-combat . | . . . . . . Combat . | . . . . . . Robot Hacks Applied . | . . . . . . Relay Couplers Released . | . . . . . . Fabnet Peak Effective % . | . . . . . . Robots Rewired . | . . . . . . Allies Hacked . | . . . . . . Hacks Repelled . | . . . . . . Allies | -11 -10 -10 -9 -9 -9 -------- Run | Yrd Mat Min Mat Min Exi Total Allies 4 | . . 3 1 . . Largest Group 3 | . . 3 3 1 1 Highest-Rated Group 40 | . . 40 40 10 10 Highest-Rated Ally 16 | . . 16 16 10 10 Total Orders 2 | . . . 2 . . STAY 1 | . . . 1 . . GUARD 1 | . . . 1 . . Ally Attacks 17 | . . . 17 . . Total Damage 154 | . . . 154 . . Kills 3 | . . . 3 . . Allies Corrupted . | . . . . . . Allies Melted . | . . . . . . Intel | -11 -10 -10 -9 -9 -9 ------- Run | Yrd Mat Min Mat Min Exi Robot Analysis Total . | . . . . . . Derelict Logs Recovered 2 | . . 1 . 1 . Drone Launches . | . . . . . . Drone Recoveries . | . . . . . . Exploration | -11 -10 -10 -9 -9 -9 ------------- Run | Yrd Mat Min Mat Min Exi Turns Passed 1579 | 37 448 282 612 141 59 Spaces Moved 2142 | 34 361 455 861 293 138 Core 130 | 18 95 14 . . 3 Treads . | . . . . . . Legs . | . . . . . . Wheels 268 | 16 252 . . . . Hover . | . . . . . . Flight 1744 | . 14 441 861 293 135 Fastest Speed 37 | 50 40 37 37 37 37 Average Speed 45 | 89 80 37 37 37 39 Slowest Speed 150 | 150 150 100 117 37 100 Overloaded Moves . | . . . . . . Propulsion Burnouts . | . . . . . . Robots Hopped 10 | . . 3 7 . . Cave-ins Triggered . | . . . . . . Exploration Rate (%) 59 | 4 63 86 76 75 53 Regions Visited 5 Branch Regions 3 Pre-discovered Areas . | . . . . . . Known Exits Taken 2 | . . . 1 1 . Unknown Exits Taken 3 | 1 1 1 . . . Scrap Searched 3 | . . 1 . 2 . Spaces Dug 44 | . 2 . 42 . . Terrain Destroyed 158 | . 10 . 113 35 . Melee 10 | . 2 . 8 . . Projectile . | . . . . . . AOE 148 | . 8 . 105 35 . Terrain Rammed . | . . . . . . Walls Destroyed . | . . . . . . Machines Disabled . | . . . . . . Actions | -11 -10 -10 -9 -9 -9 --------- Run | Yrd Mat Min Mat Min Exi Total 2551 | 38 444 551 1057 320 141 Wait 248 | . 32 72 121 23 . Move 2119 | 33 360 448 848 292 138 Hop 8 | . . 3 5 . . Pick Up 18 | . 5 7 6 . . Fast Attach 18 | 5 3 4 6 . . Attach 9 | . 1 2 5 . 1 Detach . | . . . . . . Swap 9 | . 2 1 5 1 . Drop 20 | . 5 7 7 . 1 Fire 41 | . 10 7 20 4 . Melee 61 | . 26 . 34 . 1 Ram . | . . . . . . Kick . | . . . . . . Crush . | . . . . . . Escape Stasis . | . . . . . . Rewire . | . . . . . . Trap . | . . . . . . Miscellaneous . | . . . . . . Route ------- -11/Scrapyard -10/Materials (discovered 3 exits: *Mat / *Min x2) -10/Mines -9/Materials (discovered 5 exits: *Mat x3 / *Min x2) -9/Mines (discovered 3 exits: *Mat / *Exi / [*Zio]) -9/Exiles (discovered 2 exits: *Min x2) History --------- Turn | Location | Event 16 | -11/Scrapyard | Discovered new exit (range 16) 38 | -11/Scrapyard | Entered Materials 38 | -10/Materials | Discovered new exit (range 7) 313 | -10/Materials | Build established: Mutant 371 | -10/Materials | Discovered new exit (range 5) 458 | -10/Materials | Discovered new exit (range 7) 486 | -10/Materials | Core integrity fell below 50% 486 | -10/Materials | Entered Mines 486 | -10/Mines | Learned Materials stockpile data 501 | -10/Mines | Met a Derelict bent on vengeance 593 | -10/Mines | Joined a pair of Derelicts in attacking an 0b10 outpost 624 | -10/Mines | Met a Derelict who couldn't figure out how to use a Trap Extractor 666 | -10/Mines | Found a damaged Exp. Sensor Array with a note attached 667 | -10/Mines | Found Prototype Device 702 | -10/Mines | Discovered new exit (range 5) 704 | -10/Mines | Assisted by bots powering up and referring to "LRC-V3" 768 | -10/Mines | Entered Materials 768 | -9/Materials | Accompanied by 3 allies 768 | -9/Materials | Evolved 2 slots: Utility x2 802 | -9/Materials | Build established: Scavenger-Mutant 900 | -9/Materials | Repaired Lgt. Armor Plating 980 | -9/Materials | Discovered new exit (range 16) 1055 | -9/Materials | Identified exit to Materials 1058 | -9/Materials | Identified Exp. Sensor Array 1183 | -9/Materials | Discovered new exit (range 9) 1194 | -9/Materials | Identified exit to Mines 1254 | -9/Materials | Destroyed 11 combat bots 1380 | -9/Materials | Entered Mines 1380 | -9/Mines | Accompanied by 1 ally 1457 | -9/Mines | A Derelict revealed a hidden shortcut to a safe place 1457 | -9/Mines | Learned Materials terminal intel 1471 | -9/Mines | Discovered exit to Materials (range 14) 1497 | -9/Mines | Deemed a non-threat by the Exiles lab entrance 1497 | -9/Mines | Discovered new exit (range 5) 1512 | -9/Mines | Identified exit to Exiles 1521 | -9/Mines | Entered Exiles 1521 | -9/Exiles | Accompanied by 1 ally 1526 | -9/Exiles | Discovered new exit (range 15) 1530 | -9/Exiles | Met 8R-AWN 1536 | -9/Exiles | Met EX-HEX 1553 | -9/Exiles | Attacked by the Exiles 1557 | -9/Exiles | Core integrity fell below 50% 1563 | -9/Exiles | Core integrity fell below 20% 1577 | -9/Exiles | Discovered new exit (range 10) 1579 | -9/Exiles | Identified exit to Mines 1580 | -9/Exiles | Self-destructed Last Messages --------------- keep us out! Anyway, I've got to get back to poking and prodding these nasty little guys. Go see BIN. I can't imagine you'll want to stay in our boring little cave for long, and we could use some help with the project in the back. 01552_ Sneak attack on A-02 Transporter. 01552_ A-02 Transporter Lgt. Treads ripped off. 01553_ EXILES: Hostile robot within lab perimeter. Defensive protocols time, folks! 01555_ Rocket Launcher destroyed. 01555_ Knocked back. 01558_ Flight Unit destroyed. 01558_ Knocked back. 01560_ Imp. Flight Unit destroyed. 01562_ EX-BIN: "I just want to science!" 01562_ Knocked back. 01565_ Dropped Lgt. Ion Engine. 01577_ EXIT=FOUND 01579_ EXIT=IDENTIFIED: MINES Map ----- +----------------------------------------------------+ | | | | | | | | | | | | | ????????????????????????????????????????? | | ????????????????????????????????????????? | | ????????????????????????????????????????? | | ????????????????????????????????????????? | | ????????????????????????????????????????? | | ????????????????????????????????????????? | | ????????????????????????????????????????? | | ????????????????????????????????????????? | | ????????????????????????????????????????? | | ????????????????????????????????????????? | | ????????????????????????????????????????? | | ????????????????????????????????????????? | | ????????????????????????????????????????? | | ????????????????????????????????????????? | | ????????????????????????????????????????? | | ????????????????????????????????????????? | | ????????????????#####???????????????????? | | ???????????????## ##??????????????????? | | ???????????????# #??????????????????? | | ???????????????#@ > #??????????????????? | | ???????????????# ###????????????????? | | ???????????????# #????????????????? | | ???????????????# ##????????????????? | | ???????????????## #?????????????????? | | ????????????????# ##????????????????? | | ????????????????## #????????????##### | | ?????????????????# #######??????#!!! | | ?????????????????# #""##?????# | | ?????????????????## #?????# | | ??????????????????##" ##???## " | | ??????????????????#"" #####" " | | ??????????????????#### ##" " | | ?????????????????????## #"" # | | ??????????????????????#"## # | | ??????????????????????####### # | | ????????????????????????????### " | | ?????????????????????????????#" | | ???????????????????????????"""" | | ?????????????????????????? "###"" | | ???????????????????????? "#?##" | | ???????????????????????? ##??#" | | ??????????????????????? !""""""###???#"# | | ????????????????????????#######??????#### | | ????????????????????????????????????????# | +----------------------------------------------------+ Best States ------------- Heat Dissipation 28 Energy Generation 14 Energy Capacity 140 Matter Stores 300 Matter Capacity 300 Sight Range 16 Terrain Scan Density 10 Additional Mass Support 6 Armor Coverage 225 Evasion (%) 62 Offensive Hacking 10 Item Schematics ----------------- Exp. Sensor Array | -9/Materials | Scanalyzed Robot Schematics ------------------ None Fabricated ------------ Nothing Alien Tech Used ----------------- None Achievements -------------- None Challenges ------------ None Game ------ Seed ExplosiveSurgeKinecellerator Manual? 0 Play Time 00:23:49 Cumulative 205.6 hours Start 2025.03.29 @ 23:39:33 End 2025.03.30 @ 06:12:39 Sessions 1 Manual Loads 0 Difficulty Rogue Special Mode None Game No. 197 Rogue 136 Adventurer 61 Explorer 0 Win Type - Total 10 Types 8/0/2/0/0/0/0/0/0 Lore% 32 Gallery% 65 Achievement% 60 Wizard Run 0 Options --------- Layout 1 ASCII 0 Keyboard 0 Movement Mouse Keybinds 0 Fullscreen 2 Font 32/SmallcapsGlow Map View 50x35 Zoom Use 0% Tactical HUD 1 Map Filters NONE Filters NONE Steam 1 RUN: cb395fe3-aa67-4d78-88b6-afca893cd2d9